[Event "*** Titled Tuesday Blitz"]
[Site "Chess.com"]
[Date "2020.04.14"]
[Round "8"]
[White "TheBigBoss04"]
[Black "mbojan"]
[Result "1/2-1/2"]
[WhiteElo "2764"]
[BlackElo "2611"]
[TimeControl "180+1"]
[EndTime "11:35:18 PDT"]
[Termination "Game drawn by 50-move rule"]

1. Nf3 {[%clk 0:03:00.9]} 1... Nf6 {[%clk 0:02:59.1]} 2. d4 {[%clk 0:03:01.1]}
2... g6 {[%clk 0:02:58.4]} 3. Bg5 {[%clk 0:03:01.5]} 3... Bg7 {[%clk 0:02:58.1]}
4. Nbd2 {[%clk 0:03:02.1]} 4... O-O {[%clk 0:02:57.5]} 5. c3 {[%clk 0:03:02.7]}
5... c5 {[%clk 0:02:54.3]} 6. dxc5 {[%clk 0:03:01.3]} 6... Na6 {[%clk
0:02:46.6]} 7. Nb3 {[%clk 0:03:00.6]} 7... Ne4 {[%clk 0:02:44.7]} 8. Be3 {[%clk
0:02:59.6]} 8... Qc7 {[%clk 0:02:34.7]} 9. Qd5 {[%clk 0:02:56.5]} 9... Nxc3
{[%clk 0:02:03.5]} 10. bxc3 {[%clk 0:02:43.9]} 10... Bxc3+ {[%clk 0:02:04.4]}
11. Bd2 {[%clk 0:02:39.8]} 11... Bxa1 {[%clk 0:02:03.4]} 12. Nxa1 {[%clk
0:02:39.2]} 12... Qxc5 {[%clk 0:01:58.3]} 13. Qxc5 {[%clk 0:02:33.3]} 13... Nxc5
{[%clk 0:01:59.2]} 14. e3 {[%clk 0:02:28.6]} 14... d6 {[%clk 0:01:59.1]} 15. Bc4
{[%clk 0:02:28.4]} 15... Be6 {[%clk 0:01:56.6]} 16. Bxe6 {[%clk 0:02:25]} 16...
Nxe6 {[%clk 0:01:56.3]} 17. Ke2 {[%clk 0:02:25.8]} 17... Rfc8 {[%clk 0:01:55.6]}
18. Rb1 {[%clk 0:02:26.4]} 18... b6 {[%clk 0:01:55.1]} 19. a4 {[%clk 0:02:18.7]}
19... Rab8 {[%clk 0:01:44.3]} 20. Nb3 {[%clk 0:02:06.8]} 20... Kf8 {[%clk
0:01:35.1]} 21. Nbd4 {[%clk 0:02:03.1]} 21... Nxd4+ {[%clk 0:01:16.9]} 22. Nxd4
{[%clk 0:02:02.4]} 22... Ke8 {[%clk 0:01:15.7]} 23. Kd3 {[%clk 0:02:01.8]} 23...
Kd7 {[%clk 0:01:15.4]} 24. h4 {[%clk 0:02:00.2]} 24... h5 {[%clk 0:01:13.4]} 25.
Nb5 {[%clk 0:01:55.8]} 25... a6 {[%clk 0:01:11.7]} 26. Nd4 {[%clk 0:01:55.3]}
26... Rc5 {[%clk 0:00:51.3]} 27. Bb4 {[%clk 0:01:52.9]} 27... Rc7 {[%clk
0:00:50.3]} 28. Bc3 {[%clk 0:01:49.5]} 28... Rc5 {[%clk 0:00:46.8]} 29. e4
{[%clk 0:01:44]} 29... b5 {[%clk 0:00:43]} 30. axb5 {[%clk 0:01:43.5]} 30...
axb5 {[%clk 0:00:43.9]} 31. Nb3 {[%clk 0:01:33.9]} 31... Rc7 {[%clk 0:00:36.3]}
32. Ra1 {[%clk 0:01:33.4]} 32... Rbc8 {[%clk 0:00:32.9]} 33. Bd4 {[%clk
0:01:31.2]} 33... b4 {[%clk 0:00:29.2]} 34. Rb1 {[%clk 0:01:25.1]} 34... e5
{[%clk 0:00:27.8]} 35. Ba1 {[%clk 0:01:21.4]} 35... Ke6 {[%clk 0:00:26]} 36. Nd2
{[%clk 0:01:18.4]} 36... Ra8 {[%clk 0:00:23]} 37. Nc4 {[%clk 0:01:13.2]} 37...
Ra2 {[%clk 0:00:19.6]} 38. Bb2 {[%clk 0:01:12.2]} 38... f5 {[%clk 0:00:18.9]}
39. f3 {[%clk 0:01:11.5]} 39... fxe4+ {[%clk 0:00:18.8]} 40. fxe4 {[%clk
0:01:12]} 40... b3 {[%clk 0:00:19.3]} 41. Bc3 {[%clk 0:00:55.1]} 41... Rxg2
{[%clk 0:00:20.2]} 42. Rxb3 {[%clk 0:00:55.2]} 42... Rg3+ {[%clk 0:00:20]} 43.
Ne3 {[%clk 0:00:55.9]} 43... Rh3 {[%clk 0:00:19.5]} 44. Be1 {[%clk 0:00:49.3]}
44... Rf7 {[%clk 0:00:13.2]} 45. Rb6 {[%clk 0:00:47.3]} 45... Rff3 {[%clk
0:00:12.2]} 46. Bd2 {[%clk 0:00:47.9]} 46... Rxh4 {[%clk 0:00:11.5]} 47. Bb4
{[%clk 0:00:33.6]} 47... Rhh3 {[%clk 0:00:07]} 48. Rxd6+ {[%clk 0:00:26.5]}
48... Kf7 {[%clk 0:00:07]} 49. Bd2 {[%clk 0:00:24.9]} 49... Kg7 {[%clk
0:00:06.9]} 50. Ke2 {[%clk 0:00:23.9]} 50... Rf7 {[%clk 0:00:06.8]} 51. Bc3
{[%clk 0:00:22.7]} 51... Rh2+ {[%clk 0:00:07]} 52. Kd3 {[%clk 0:00:21.8]} 52...
Re7 {[%clk 0:00:07]} 53. Nd5 {[%clk 0:00:20.6]} 53... Rh3+ {[%clk 0:00:07.5]}
54. Ke2 {[%clk 0:00:19.6]} 54... Re8 {[%clk 0:00:07.8]} 55. Rd7+ {[%clk
0:00:18.1]} 55... Kh6 {[%clk 0:00:08.4]} 56. Bd2+ {[%clk 0:00:18.5]} 56... g5
{[%clk 0:00:08.9]} 57. Rd6+ {[%clk 0:00:19]} 57... Kg7 {[%clk 0:00:09.3]} 58.
Bxg5 {[%clk 0:00:19.5]} 58... Ra8 {[%clk 0:00:09.6]} 59. Bf6+ {[%clk 0:00:18.3]}
59... Kf7 {[%clk 0:00:09.5]} 60. Rd7+ {[%clk 0:00:14.7]} 60... Ke6 {[%clk
0:00:09.5]} 61. Re7+ {[%clk 0:00:14.6]} 61... Kd6 {[%clk 0:00:10.1]} 62. Bxe5+
{[%clk 0:00:14.9]} 62... Kc6 {[%clk 0:00:10.5]} 63. Rc7+ {[%clk 0:00:15.4]}
63... Kb5 {[%clk 0:00:11.1]} 64. Rb7+ {[%clk 0:00:10.7]} 64... Kc6 {[%clk
0:00:08.6]} 65. Rb6+ {[%clk 0:00:10.1]} 65... Kd7 {[%clk 0:00:09]} 66. Rd6+
{[%clk 0:00:10.6]} 66... Kc8 {[%clk 0:00:09.6]} 67. Nb6+ {[%clk 0:00:10.7]}
67... Kb7 {[%clk 0:00:09.7]} 68. Nxa8 {[%clk 0:00:11.3]} 68... Kxa8 {[%clk
0:00:10.4]} 69. Rh6 {[%clk 0:00:11.6]} 69... Kb7 {[%clk 0:00:10.8]} 70. Bf4
{[%clk 0:00:10.4]} 70... Kc8 {[%clk 0:00:10.9]} 71. Rh7 {[%clk 0:00:10.6]} 71...
Kd8 {[%clk 0:00:11.1]} 72. Bg5+ {[%clk 0:00:10.5]} 72... Ke8 {[%clk 0:00:11.4]}
73. e5 {[%clk 0:00:10.4]} 73... Rg3 {[%clk 0:00:10.5]} 74. Bf6 {[%clk
0:00:08.3]} 74... Rg6 {[%clk 0:00:04.6]} 75. Rxh5 {[%clk 0:00:07.7]} 75... Kf7
{[%clk 0:00:05.1]} 76. Kf3 {[%clk 0:00:07.9]} 76... Ke6 {[%clk 0:00:05.6]} 77.
Kf4 {[%clk 0:00:07.8]} 77... Rg1 {[%clk 0:00:05.9]} 78. Rh7 {[%clk 0:00:07.6]}
78... Rf1+ {[%clk 0:00:06.4]} 79. Ke4 {[%clk 0:00:07.7]} 79... Re1+ {[%clk
0:00:06.9]} 80. Kf3 {[%clk 0:00:08]} 80... Rf1+ {[%clk 0:00:07.4]} 81. Ke2
{[%clk 0:00:07.9]} 81... Ra1 {[%clk 0:00:08.3]} 82. Re7+ {[%clk 0:00:08]} 82...
Kf5 {[%clk 0:00:09]} 83. Re8 {[%clk 0:00:07.9]} 83... Ra2+ {[%clk 0:00:08.5]}
84. Kd3 {[%clk 0:00:08.4]} 84... Ra3+ {[%clk 0:00:09.4]} 85. Kd4 {[%clk
0:00:08.8]} 85... Ra4+ {[%clk 0:00:10.3]} 86. Kd5 {[%clk 0:00:09.2]} 86... Ra5+
{[%clk 0:00:11.2]} 87. Kd6 {[%clk 0:00:09.5]} 87... Ra6+ {[%clk 0:00:11.8]} 88.
Ke7 {[%clk 0:00:09.4]} 88... Ra7+ {[%clk 0:00:12.3]} 89. Kf8 {[%clk 0:00:09.7]}
89... Kg6 {[%clk 0:00:12.6]} 90. Rd8 {[%clk 0:00:05.2]} 90... Rf7+ {[%clk
0:00:11.5]} 91. Ke8 {[%clk 0:00:05.7]} 91... Ra7 {[%clk 0:00:12.3]} 92. Be7
{[%clk 0:00:05.3]} 92... Kf5 {[%clk 0:00:11.7]} 93. Bd6 {[%clk 0:00:05.2]} 93...
Ke6 {[%clk 0:00:12.2]} 94. Rc8 {[%clk 0:00:02.9]} 94... Rh7 {[%clk 0:00:12.2]}
95. Rc5 {[%clk 0:00:02.4]} 95... Rh8+ {[%clk 0:00:11]} 96. Bf8 {[%clk 0:00:03]}
96... Rh5 {[%clk 0:00:11.9]} 97. Ra5 {[%clk 0:00:03.2]} 97... Rxe5 {[%clk
0:00:11.6]} 98. Ra6+ {[%clk 0:00:03.9]} 98... Kf5+ {[%clk 0:00:12.2]} 99. Kf7
{[%clk 0:00:04.7]} 99... Re2 {[%clk 0:00:11.6]} 100. Be7 {[%clk 0:00:05.1]}
100... Ke4 {[%clk 0:00:12.1]} 101. Ra5 {[%clk 0:00:05.3]} 101... Kd3 {[%clk
0:00:12.6]} 102. Bf6 {[%clk 0:00:05.7]} 102... Kc2 {[%clk 0:00:12.9]} 103. Kg6
{[%clk 0:00:05.9]} 103... Kd2 {[%clk 0:00:13.3]} 104. Kf5 {[%clk 0:00:06.2]}
104... Ke3 {[%clk 0:00:13.7]} 105. Be5 {[%clk 0:00:06.3]} 105... Kd2 {[%clk
0:00:14.1]} 106. Ra2+ {[%clk 0:00:06.3]} 106... Ke3 {[%clk 0:00:14]} 107. Ra3+
{[%clk 0:00:06.8]} 107... Kf2 {[%clk 0:00:14.2]} 108. Bg3+ {[%clk 0:00:06.1]}
108... Kg2 {[%clk 0:00:14.3]} 109. Kg4 {[%clk 0:00:06.5]} 109... Rc2 {[%clk
0:00:14.1]} 110. Bf4 {[%clk 0:00:06.5]} 110... Re2 {[%clk 0:00:14.5]} 111. Rg3+
{[%clk 0:00:06.4]} 111... Kf2 {[%clk 0:00:14.6]} 112. Rh3 {[%clk 0:00:06.4]}
112... Kg2 {[%clk 0:00:15.1]} 113. Rh2+ {[%clk 0:00:06.7]} 113... Kf1 {[%clk
0:00:15.4]} 114. Rh1+ {[%clk 0:00:06.8]} 114... Kg2 {[%clk 0:00:15.8]} 115. Ra1
{[%clk 0:00:07]} 115... Rf2 {[%clk 0:00:16.1]} 116. Ra3 {[%clk 0:00:06.7]}
116... Re2 {[%clk 0:00:16.1]} 117. Bg3 {[%clk 0:00:06.1]} 117... Kf1 {[%clk
0:00:15.5]} 118. Kf3 {[%clk 0:00:05.3]} 118... Rf2+ {[%clk 0:00:16]} 119. Kg4
{[%clk 0:00:04.9]} 119... Re2 {[%clk 0:00:15.5]} 120. Ra8 {[%clk 0:00:03.5]}
120... Kg2 {[%clk 0:00:15.6]} 121. Bf4 {[%clk 0:00:03.7]} 121... Rf2 {[%clk
0:00:15.6]} 122. Rh8 {[%clk 0:00:03.5]} 122... Re2 {[%clk 0:00:16.1]} 123. Kf5
{[%clk 0:00:03.1]} 123... Kf3 {[%clk 0:00:16.1]} 124. Rh3+ {[%clk 0:00:03.2]}
124... Kg2 {[%clk 0:00:16.4]} 125. Ra3 {[%clk 0:00:04]} 125... Kf2 {[%clk
0:00:16.7]} 126. Bg3+ {[%clk 0:00:03.9]} 126... Kg2 {[%clk 0:00:17.2]} 127. Kf4
{[%clk 0:00:04]} 127... Kf1 {[%clk 0:00:17.5]} 128. Kg4 {[%clk 0:00:02.4]}
128... Kg2 {[%clk 0:00:17.6]} 129. Ra4 {[%clk 0:00:03]} 129... Rd2 {[%clk
0:00:17.2]} 130. Bf4 {[%clk 0:00:03.2]} 130... Re2 {[%clk 0:00:17.7]} 131. Ra3
{[%clk 0:00:02.7]} 131... Rf2 {[%clk 0:00:18]} 132. Bg3 {[%clk 0:00:02.3]}
132... Re2 {[%clk 0:00:18.3]} 133. Ra4 {[%clk 0:00:02.8]} 133... Rd2 {[%clk
0:00:18.4]} 134. Bf4 {[%clk 0:00:02.1]} 134... Re2 {[%clk 0:00:18.7]} 135. Ra3
{[%clk 0:00:02.6]} 135... Rf2 {[%clk 0:00:18.5]} 136. Rg3+ {[%clk 0:00:03.1]}
136... Kf1 {[%clk 0:00:18.6]} 137. Kf5 {[%clk 0:00:03.5]} 137... Rg2 {[%clk
0:00:16.2]} 138. Rf3+ {[%clk 0:00:03.3]} 138... Ke2 {[%clk 0:00:16.6]} 139. Ke4
{[%clk 0:00:02]} 139... Rf2 {[%clk 0:00:15.5]} 140. Ra3 {[%clk 0:00:02.7]}
140... Rg2 {[%clk 0:00:15.4]} 141. Ra2+ {[%clk 0:00:01.8]} 141... Kf1 {[%clk
0:00:15.8]} 142. Ra1+ {[%clk 0:00:02.7]} 142... Ke2 {[%clk 0:00:16.4]} 143. Bh2
{[%clk 0:00:02.7]} 143... Rg4+ {[%clk 0:00:14.3]} 144. Bf4 {[%clk 0:00:03.1]}
144... Rg2 {[%clk 0:00:14.6]} 145. Ra3 {[%clk 0:00:03.5]} 145... Rf2 {[%clk
0:00:14]} 146. Be3 {[%clk 0:00:03.2]} 146... Rg2 {[%clk 0:00:13.6]} 147. Ra1
{[%clk 0:00:03]} 147... Rg4+ {[%clk 0:00:13.3]} 1/2-1/2

[Event "*** Titled Tuesday Blitz"]
[Site "Chess.com"]
[Date "2020.04.14"]
[Round "9"]
[White "TudorAnton"]
[Black "Kiborg95"]
[Result "1-0"]
[WhiteElo "2605"]
[BlackElo "2758"]
[TimeControl "180+1"]
[EndTime "11:37:39 PDT"]
[Termination "TudorAnton won by resignation"]

1. d4 {[%clk 0:03:00.9]} 1... d6 {[%clk 0:02:47.8]} 2. e4 {[%clk 0:02:59.7]}
2... g6 {[%clk 0:02:48.4]} 3. Nc3 {[%clk 0:02:59.2]} 3... Bg7 {[%clk 0:02:49.1]}
4. f4 {[%clk 0:02:58.6]} 4... a6 {[%clk 0:02:48.7]} 5. Nf3 {[%clk 0:02:56.4]}
5... Nd7 {[%clk 0:02:47.5]} 6. Be3 {[%clk 0:02:55.2]} 6... b5 {[%clk 0:02:47.5]}
7. Bd3 {[%clk 0:02:55.6]} 7... Bb7 {[%clk 0:02:47.9]} 8. O-O {[%clk 0:02:53.7]}
8... c5 {[%clk 0:02:47]} 9. dxc5 {[%clk 0:02:45.8]} 9... Nxc5 {[%clk 0:02:39.3]}
10. Qe2 {[%clk 0:02:35.4]} 10... Rc8 {[%clk 0:02:33.7]} 11. Rad1 {[%clk
0:02:33.4]} 11... Nf6 {[%clk 0:02:08.2]} 12. e5 {[%clk 0:02:30.6]} 12... Nfd7
{[%clk 0:02:08]} 13. exd6 {[%clk 0:02:28.4]} 13... exd6 {[%clk 0:02:08.9]} 14.
Bxc5+ {[%clk 0:02:27.8]} 1-0

[Event "*** Titled Tuesday Blitz"]
[Site "Chess.com"]
[Date "2020.04.14"]
[Round "9"]
[White "1g41-0"]
[Black "Hippotaner"]
[Result "1-0"]
[WhiteElo "2497"]
[BlackElo "2282"]
[TimeControl "180+1"]
[EndTime "11:37:44 PDT"]
[Termination "1g41-0 won by checkmate"]

1. e4 {[%clk 0:03:00.9]} 1... c5 {[%clk 0:02:57.6]} 2. Nf3 {[%clk 0:03:01.3]}
2... Nc6 {[%clk 0:02:56.2]} 3. d4 {[%clk 0:03:01.1]} 3... cxd4 {[%clk 0:02:56]}
4. c3 {[%clk 0:03:01.6]} 4... Nf6 {[%clk 0:02:56.6]} 5. e5 {[%clk 0:02:56.7]}
5... Nd5 {[%clk 0:02:56.8]} 6. Bc4 {[%clk 0:02:57]} 6... Nb6 {[%clk 0:02:56.6]}
7. Bb3 {[%clk 0:02:57.4]} 7... e6 {[%clk 0:02:57.1]} 8. cxd4 {[%clk 0:02:51.6]}
8... d6 {[%clk 0:02:57]} 9. Qe2 {[%clk 0:02:48.2]} 9... dxe5 {[%clk 0:02:56.9]}
10. dxe5 {[%clk 0:02:49.1]} 10... Bb4+ {[%clk 0:02:56.5]} 11. Bd2 {[%clk
0:02:48.4]} 11... Bxd2+ {[%clk 0:02:56.7]} 12. Nbxd2 {[%clk 0:02:49.3]} 12...
Kf8 {[%clk 0:02:56.9]} 13. O-O {[%clk 0:02:48.1]} 13... Nd4 {[%clk 0:02:48.8]}
14. Nxd4 {[%clk 0:02:48.1]} 14... Qxd4 {[%clk 0:02:48.2]} 15. Rfd1 {[%clk
0:02:46]} 15... Qxb2 {[%clk 0:02:48]} 16. Rab1 {[%clk 0:02:24]} 16... Qa3 {[%clk
0:02:46.8]} 17. Nc4 {[%clk 0:02:23.9]} 17... Nxc4 {[%clk 0:02:45.6]} 18. Rd8+
{[%clk 0:02:23.2]} 18... Ke7 {[%clk 0:02:43.8]} 19. Rxh8 {[%clk 0:02:24.1]}
19... Nb6 {[%clk 0:02:39.2]} 20. Qd2 {[%clk 0:02:22.2]} 20... Bd7 {[%clk
0:02:31.5]} 21. Qg5+ {[%clk 0:02:22.2]} 21... f6 {[%clk 0:02:24.9]} 22. Qxg7#
{[%clk 0:02:22.1]} 1-0

[Event "*** Titled Tuesday Blitz"]
[Site "Chess.com"]
[Date "2020.04.14"]
[Round "9"]
[White "NiranjanNavalgund"]
[Black "ItalianMachine"]
[Result "1/2-1/2"]
[WhiteElo "2428"]
[BlackElo "2302"]
[TimeControl "180+1"]
[EndTime "11:37:55 PDT"]
[Termination "Game drawn by agreement"]

1. d4 {[%clk 0:03:00.9]} 1... Nf6 {[%clk 0:02:54.6]} 2. Nf3 {[%clk 0:03:01.8]}
2... g6 {[%clk 0:02:54.1]} 3. g3 {[%clk 0:02:47.8]} 3... Bg7 {[%clk 0:02:54]} 4.
Bg2 {[%clk 0:02:48.7]} 4... O-O {[%clk 0:02:54.2]} 5. O-O {[%clk 0:02:49.6]}
5... d6 {[%clk 0:02:54.5]} 6. a4 {[%clk 0:02:42.8]} 6... Nc6 {[%clk 0:02:53.1]}
7. Nc3 {[%clk 0:02:43.7]} 7... e5 {[%clk 0:02:52.7]} 8. dxe5 {[%clk 0:02:43.6]}
8... dxe5 {[%clk 0:02:52.7]} 9. Qxd8 {[%clk 0:02:44]} 9... Rxd8 {[%clk
0:02:53.6]} 10. Bg5 {[%clk 0:02:44.1]} 10... h6 {[%clk 0:02:46.6]} 11. Bxf6
{[%clk 0:02:38.9]} 11... Bxf6 {[%clk 0:02:42.9]} 12. Rfd1 {[%clk 0:02:38.9]}
1/2-1/2

[Event "*** Titled Tuesday Blitz"]
[Site "Chess.com"]
[Date "2020.04.14"]
[Round "9"]
[White "anesar92"]
[Black "11kevin"]
[Result "1-0"]
[WhiteElo "2692"]
[BlackElo "2560"]
[TimeControl "180+1"]
[EndTime "11:38:20 PDT"]
[Termination "anesar92 won by resignation"]

1. e4 {[%clk 0:03:00.9]} 1... e5 {[%clk 0:02:59.5]} 2. Nc3 {[%clk 0:03:00.7]}
2... Nc6 {[%clk 0:02:58.5]} 3. Bc4 {[%clk 0:03:00.9]} 3... Bc5 {[%clk
0:02:57.8]} 4. Qg4 {[%clk 0:03:00.4]} 4... g6 {[%clk 0:02:53.2]} 5. Qf3 {[%clk
0:03:00]} 5... Qf6 {[%clk 0:02:42.3]} 6. Nd5 {[%clk 0:02:54.2]} 6... Qxf3 {[%clk
0:02:42.1]} 7. Nxf3 {[%clk 0:02:55.1]} 7... Bd6 {[%clk 0:02:40.2]} 8. d3 {[%clk
0:02:49]} 8... Nce7 {[%clk 0:02:36.9]} 9. Bg5 {[%clk 0:02:40.2]} 9... Nxd5
{[%clk 0:02:32.6]} 10. Bxd5 {[%clk 0:02:40.1]} 10... c6 {[%clk 0:02:32.9]} 11.
Bb3 {[%clk 0:02:39.8]} 11... h6 {[%clk 0:02:30.3]} 12. Be3 {[%clk 0:02:37.5]}
12... Nf6 {[%clk 0:02:27.3]} 13. O-O-O {[%clk 0:02:37.4]} 13... Ng4 {[%clk
0:02:26.8]} 14. d4 {[%clk 0:02:32.5]} 14... Nxe3 {[%clk 0:02:25.2]} 15. fxe3
{[%clk 0:02:33.4]} 15... exd4 {[%clk 0:02:22.6]} 16. e5 {[%clk 0:02:31.8]} 16...
Be7 {[%clk 0:02:17.8]} 17. exd4 {[%clk 0:02:30.8]} 17... d5 {[%clk 0:02:15.6]}
18. exd6 {[%clk 0:02:29.8]} 18... Bxd6 {[%clk 0:02:15.9]} 19. Rde1+ {[%clk
0:02:27.6]} 19... Kf8 {[%clk 0:02:14.1]} 20. Rhf1 {[%clk 0:02:26.2]} 20... Kg7
{[%clk 0:02:14.1]} 21. Ne5 {[%clk 0:02:25.8]} 21... Bxe5 {[%clk 0:02:07]} 22.
Rxf7+ {[%clk 0:02:19.3]} 1-0

[Event "*** Titled Tuesday Blitz"]
[Site "Chess.com"]
[Date "2020.04.14"]
[Round "9"]
[White "grunbergmihai"]
[Black "Luibov_AN"]
[Result "0-1"]
[WhiteElo "2311"]
[BlackElo "2183"]
[TimeControl "180+1"]
[EndTime "11:38:30 PDT"]
[Termination "Luibov_AN won by resignation"]

1. Nf3 {[%clk 0:03:00.9]} 1... g6 {[%clk 0:02:57.4]} 2. d4 {[%clk 0:02:59.9]}
2... Bg7 {[%clk 0:02:57.8]} 3. c4 {[%clk 0:02:59.8]} 3... c5 {[%clk 0:02:58]} 4.
d5 {[%clk 0:02:59.4]} 4... e5 {[%clk 0:02:58.1]} 5. Nc3 {[%clk 0:02:58.6]} 5...
d6 {[%clk 0:02:58]} 6. e4 {[%clk 0:02:58.6]} 6... Nf6 {[%clk 0:02:57.8]} 7. Bd3
{[%clk 0:02:58.2]} 7... O-O {[%clk 0:02:57.1]} 8. O-O {[%clk 0:02:57.6]} 8...
Na6 {[%clk 0:02:55.3]} 9. a3 {[%clk 0:02:57.2]} 9... Nc7 {[%clk 0:02:54.6]} 10.
Rb1 {[%clk 0:02:57.1]} 10... b6 {[%clk 0:02:52.7]} 11. b4 {[%clk 0:02:57.1]}
11... Nh5 {[%clk 0:02:51.9]} 12. Re1 {[%clk 0:02:49.2]} 12... Nf4 {[%clk
0:02:51.9]} 13. Bf1 {[%clk 0:02:47.9]} 13... f5 {[%clk 0:02:50.3]} 14. g3 {[%clk
0:02:42.4]} 14... Nh5 {[%clk 0:02:49.1]} 15. Bg2 {[%clk 0:02:39.8]} 15... Ne8
{[%clk 0:02:43.3]} 16. exf5 {[%clk 0:02:34.9]} 16... Bxf5 {[%clk 0:02:39.9]} 17.
Ne4 {[%clk 0:02:34.6]} 17... Nef6 {[%clk 0:02:35.8]} 18. Bg5 {[%clk 0:02:22.9]}
18... Qd7 {[%clk 0:02:25.7]} 19. Rb3 {[%clk 0:02:12.9]} 19... Bxe4 {[%clk
0:02:15.8]} 20. Nxe5 {[%clk 0:02:06.6]} 20... dxe5 {[%clk 0:02:14.1]} 21. Bxe4
{[%clk 0:02:06]} 21... Nxe4 {[%clk 0:02:12.3]} 22. Rxe4 {[%clk 0:02:06.9]} 22...
Qf5 {[%clk 0:02:10.3]} 23. Qg4 {[%clk 0:02:03]} 23... Qxf2+ {[%clk 0:02:07.2]}
0-1

[Event "*** Titled Tuesday Blitz"]
[Site "Chess.com"]
[Date "2020.04.14"]
[Round "9"]
[White "TomasKapitanchuk"]
[Black "pedroholly22"]
[Result "0-1"]
[WhiteElo "2468"]
[BlackElo "2350"]
[TimeControl "180+1"]
[EndTime "11:38:51 PDT"]
[Termination "pedroholly22 won by resignation"]

1. e4 {[%clk 0:03:00.9]} 1... g6 {[%clk 0:02:57.6]} 2. d4 {[%clk 0:03:00.1]}
2... Bg7 {[%clk 0:02:56.7]} 3. Nf3 {[%clk 0:02:58.5]} 3... d6 {[%clk 0:02:55.6]}
4. Nc3 {[%clk 0:02:58.1]} 4... Nf6 {[%clk 0:02:55.7]} 5. h3 {[%clk 0:02:56]}
5... O-O {[%clk 0:02:55.7]} 6. Be2 {[%clk 0:02:56.1]} 6... c5 {[%clk 0:02:55.2]}
7. d5 {[%clk 0:02:54.1]} 7... e6 {[%clk 0:02:55]} 8. O-O {[%clk 0:02:52.7]} 8...
exd5 {[%clk 0:02:54.9]} 9. exd5 {[%clk 0:02:53.6]} 9... a6 {[%clk 0:02:53.9]}
10. a4 {[%clk 0:02:53.7]} 10... Re8 {[%clk 0:02:52.2]} 11. Bd3 {[%clk
0:02:46.7]} 11... Nbd7 {[%clk 0:02:52.3]} 12. Bf4 {[%clk 0:02:45.7]} 12... Ne5
{[%clk 0:02:47]} 13. Be2 {[%clk 0:02:25.8]} 13... Nxf3+ {[%clk 0:02:35.9]} 14.
Bxf3 {[%clk 0:02:24.4]} 14... Bf5 {[%clk 0:02:36]} 15. g4 {[%clk 0:02:10.9]}
15... Be4 {[%clk 0:02:30.8]} 16. Nxe4 {[%clk 0:02:10.2]} 16... Nxe4 {[%clk
0:02:29.3]} 17. Re1 {[%clk 0:02:07.5]} 17... Nf6 {[%clk 0:02:23.8]} 18. Rxe8+
{[%clk 0:02:07.2]} 18... Nxe8 {[%clk 0:02:21.6]} 19. c3 {[%clk 0:01:55.6]} 19...
Qf6 {[%clk 0:02:19.8]} 20. Bg3 {[%clk 0:01:54.7]} 20... Nc7 {[%clk 0:02:17.1]}
21. a5 {[%clk 0:01:45.5]} 21... Re8 {[%clk 0:02:13.6]} 22. Qd2 {[%clk
0:01:44.1]} 22... Qxf3 {[%clk 0:02:10.5]} 23. Bxd6 {[%clk 0:01:41.1]} 23... Nxd5
{[%clk 0:02:08.2]} 0-1

[Event "*** Titled Tuesday Blitz"]
[Site "Chess.com"]
[Date "2020.04.14"]
[Round "9"]
[White "CastleOasisChess"]
[Black "aakankshachess"]
[Result "0-1"]
[WhiteElo "2110"]
[BlackElo "2452"]
[TimeControl "180+1"]
[EndTime "11:38:54 PDT"]
[Termination "aakankshachess won by resignation"]

1. d4 {[%clk 0:03:00.9]} 1... Nf6 {[%clk 0:02:59.9]} 2. e3 {[%clk 0:03:00.4]}
2... g6 {[%clk 0:02:59.6]} 3. Bd3 {[%clk 0:03:00.9]} 3... Bg7 {[%clk 0:03:00]}
4. Nd2 {[%clk 0:03:01.8]} 4... O-O {[%clk 0:02:59.9]} 5. c3 {[%clk 0:03:02.7]}
5... b6 {[%clk 0:02:59.5]} 6. f4 {[%clk 0:03:03.6]} 6... Bb7 {[%clk 0:02:59.8]}
7. Ngf3 {[%clk 0:03:03.8]} 7... c5 {[%clk 0:02:59.1]} 8. O-O {[%clk 0:03:04]}
8... d5 {[%clk 0:02:58.8]} 9. Ne5 {[%clk 0:03:03.2]} 9... Nbd7 {[%clk
0:02:58.4]} 10. Qf3 {[%clk 0:03:03.2]} 10... Qc7 {[%clk 0:02:50.4]} 11. g4
{[%clk 0:03:02.8]} 11... Rad8 {[%clk 0:02:38.6]} 12. h4 {[%clk 0:03:02.9]} 12...
h5 {[%clk 0:02:36.6]} 13. g5 {[%clk 0:03:01.4]} 13... Ne8 {[%clk 0:02:36.3]} 14.
Nxd7 {[%clk 0:02:55.1]} 14... Qxd7 {[%clk 0:02:34.7]} 15. f5 {[%clk 0:02:55.3]}
15... Nd6 {[%clk 0:02:29.5]} 16. fxg6 {[%clk 0:02:54.8]} 16... fxg6 {[%clk
0:02:29.7]} 17. Qg2 {[%clk 0:02:47.3]} 17... Rxf1+ {[%clk 0:02:28.8]} 18. Nxf1
{[%clk 0:02:45.8]} 18... Ne4 {[%clk 0:02:27.5]} 19. Nd2 {[%clk 0:02:45.6]} 19...
Qf5 {[%clk 0:02:24.8]} 20. Nf3 {[%clk 0:02:43.4]} 20... Rf8 {[%clk 0:02:23.7]}
21. Bd2 {[%clk 0:02:40.3]} 21... Qxf3 {[%clk 0:02:23]} 22. Qxf3 {[%clk
0:02:03.2]} 22... Rxf3 {[%clk 0:02:23.9]} 23. Bxe4 {[%clk 0:02:03.7]} 23... dxe4
{[%clk 0:02:22.5]} 24. Kg2 {[%clk 0:02:03.2]} 24... cxd4 {[%clk 0:02:20.8]} 25.
cxd4 {[%clk 0:02:02.7]} 25... e5 {[%clk 0:02:19.7]} 26. Rc1 {[%clk 0:01:59.5]}
26... exd4 {[%clk 0:02:19.9]} 27. exd4 {[%clk 0:01:58.6]} 27... e3 {[%clk
0:02:16.9]} 28. Be1 {[%clk 0:01:53.6]} 28... e2 {[%clk 0:02:13.4]} 29. Rc7
{[%clk 0:01:53.9]} 29... Rf7+ {[%clk 0:02:12.9]} 0-1

[Event "*** Titled Tuesday Blitz"]
[Site "Chess.com"]
[Date "2020.04.14"]
[Round "9"]
[White "Kaua18"]
[Black "Taran2004"]
[Result "1-0"]
[WhiteElo "2262"]
[BlackElo "2014"]
[TimeControl "180+1"]
[EndTime "11:38:59 PDT"]
[Termination "Kaua18 won by resignation"]

1. e4 {[%clk 0:03:00.9]} 1... c5 {[%clk 0:02:59.3]} 2. Nf3 {[%clk 0:03:01.2]}
2... d6 {[%clk 0:02:59.1]} 3. d4 {[%clk 0:03:01.4]} 3... cxd4 {[%clk 0:02:59.5]}
4. Nxd4 {[%clk 0:03:02.3]} 4... Nf6 {[%clk 0:02:59.9]} 5. Nc3 {[%clk 0:03:02.5]}
5... g6 {[%clk 0:02:59.9]} 6. Be3 {[%clk 0:03:00.5]} 6... Bg7 {[%clk 0:03:00.2]}
7. f3 {[%clk 0:03:01.1]} 7... O-O {[%clk 0:02:56.1]} 8. Qd2 {[%clk 0:03:00.8]}
8... d5 {[%clk 0:02:50.6]} 9. e5 {[%clk 0:02:48.2]} 9... Nfd7 {[%clk 0:02:45.8]}
10. f4 {[%clk 0:02:40.6]} 10... e6 {[%clk 0:02:41.6]} 11. h4 {[%clk 0:02:34.7]}
11... a6 {[%clk 0:02:40]} 12. h5 {[%clk 0:02:34.5]} 12... Nc6 {[%clk 0:02:39.9]}
13. g4 {[%clk 0:02:34]} 13... Nxd4 {[%clk 0:02:39.4]} 14. Bxd4 {[%clk 0:02:32]}
14... Qe7 {[%clk 0:02:26.2]} 15. Qh2 {[%clk 0:02:31]} 15... Bh8 {[%clk
0:02:23.1]} 16. Bd3 {[%clk 0:02:28.5]} 16... g5 {[%clk 0:02:12.5]} 17. f5 {[%clk
0:02:23.1]} 17... exf5 {[%clk 0:02:09.4]} 18. O-O-O {[%clk 0:02:20]} 18... f4
{[%clk 0:02:06.3]} 19. Nxd5 {[%clk 0:02:19.7]} 19... Qd8 {[%clk 0:02:03.3]} 20.
Bc3 {[%clk 0:02:12]} 20... h6 {[%clk 0:02:02]} 21. Qg2 {[%clk 0:02:10.4]} 21...
Nxe5 {[%clk 0:02:00]} 22. Bxe5 {[%clk 0:02:06.4]} 22... Bxe5 {[%clk 0:01:51.1]}
23. Qe4 {[%clk 0:02:05.2]} 23... f5 {[%clk 0:01:46.9]} 24. Qxe5 {[%clk
0:02:04.7]} 1-0